[Event "Turkish Cup 2024"]
[Site "Denizli"]
[Date "2024.08.02"]
[Round "5"]
[White "Yanikoglu, Omer"]
[Black "Kurdas, Halil Ibrahim"]
[Result "0-1"]
[ECO "D38"]
[WhiteElo "1727"]
[BlackElo "1855"]
[Annotator "NA COMBH"]
[PlyCount "80"]
[EventDate "2024.08.01"]
[EventType "swiss"]
[EventCountry "TUR"]
[SourceTitle "playchess.com"]
[Source "ChessBase"]
[SourceQuality "1"]
[TimeControl "5400+30"]

1. d4 {[%emt 0:01:00]} d5 {[%emt 0:01:00]} 2. c4 {[%emt 0:00:30]} e6 {[%emt 0:00:30]} 3. Nc3 {[%emt 0:00:00]} Nf6 {[%emt 0:00:00]} 4. Nf3 {[%emt 0:00:00]} Nbd7 {[%emt 0:00:00]} 5. Bg5 {[%emt 0:00:00]} Bb4 {[%emt 0:00:30]} 6. a3 {[%emt 0:00:00]} Bxc3+ {[%emt 0:00:30]} 7. bxc3 {[%emt 0:00:30]} c5 {[%emt 0:00:30]} 8. cxd5 {[%emt 0:04:30]} exd5 {[%emt 0:00:30]} 9. g3 {[%emt 0:05:30]} Qa5 {[%emt 0:01:30]} 10. Bd2 {[%emt 0:00:30]} c4 {[%emt 0:02:30]} 11. Bg2 {[%emt 0:00:30]} O-O {[%emt 0:00:30]} 12. O-O {[%emt 0:00:30]} Re8 {[%emt 0:00:00]} 13. Qc2 {[%emt 0:01:30]} Rxe2 {[%emt 0:04:00]} 14. Rfe1 {[%emt 0:00:30]} Rxe1+ {[%emt 0:00:30]} 15. Rxe1 {[%emt 0:00:30]} Qxa3 {[%emt 0:02:30]} 16. Nh4 {[%emt 0:16:30]} Qb3 $17 {[%emt 0:07:30]} 17. Qc1 {[%emt 0:04:30]} Nf8 {[%emt 0:03:30]} 18. Bg5 {[%emt 0:01:30]} Ne4 {[%emt 0:00:30]} 19. Bxe4 {[%emt 0:01:30]} dxe4 {[%emt 0:01:30]} 20. Rxe4 {[%emt 0:00:00]} Be6 {[%emt 0:00:30]} 21. Ng2 {[%emt 0:04:00]} Bd5 {[%emt 0:02:30]} 22. Re1 {[%emt 0:05:30]} Bxg2 {[%emt 0:04:30]} 23. Kxg2 {[%emt 0:01:30]} a5 {[%emt 0:00:00]} 24. Be7 {[%emt 0:00:30]} Qb5 {[%emt 0:01:00]} 25. Re5 {[%emt 0:05:30]} Qd7 {[%emt 0:01:30]} 26. Bxf8 {[%emt 0:09:30]} f6 {[%emt 0:02:30]} 27. Re7 {[%emt 0:19:49]} Qc6+ {[%emt 0:01:30]} 28. f3 {[%emt 0:00:19]} Rxf8 {[%emt 0:00:30]} 29. Qf4 {[%emt 0:02:22]} Kh8 {[%emt 0:16:30]} 30. Rc7 {[%emt 0:00:36]} Qa4 {[%emt 0:04:30]} 31. Rxb7 {[%emt 0:00:49]} Qc2+ {[%emt 0:00:30]} 32. Kh3 {[%emt 0:00:30]} Qxc3 {[%emt 0:02:30]} 33. Qc7 {[%emt 0:04:25]} Rg8 {[%emt 0:00:30]} 34. d5 {[%emt 0:01:09]} Qxf3 {[%emt 0:01:30]} 35. d6 {[%emt 0:00:06]} Qf1+ {[%emt 0:00:00]} 36. Kg4 {[%emt 0:02:19]} h5+ {[%emt 0:03:00]} 37. Kxh5 {[%emt 0:00:21]} Qh3+ {[%emt 0:00:30]} 38. Kg6 {[%emt 0:00:49]} Qg4+ {[%emt 0:00:00]} 39. Kf7 {[%emt 0:00:21]} Qh5+ {[%emt 0:00:00]} 40. Ke6 {[%emt 0:01:05]} Qe5+ {[%emt 0:00:30]} 0-1

[Event "Turkish Cup 2024"]
[Site "Denizli"]
[Date "2024.08.02"]
[Round "5"]
[White "Yogurtcuoglu, Cagan"]
[Black "Yardimci, Can"]
[Result "1/2-1/2"]
[ECO "D87"]
[WhiteElo "1713"]
[BlackElo "1930"]
[Annotator "RC"]
[PlyCount "67"]
[EventDate "2024.08.01"]
[EventType "swiss"]
[EventCountry "TUR"]
[SourceTitle "playchess.com"]
[Source "ChessBase"]
[SourceQuality "1"]
[TimeControl "5400+30"]

1. d4 {[%emt 0:01:00]} Nf6 {[%emt 0:02:00]} 2. c4 {[%emt 0:00:00]} g6 {[%emt 0:00:00]} 3. Nc3 {[%emt 0:00:00]} d5 {[%emt 0:00:00]} 4. cxd5 {[%emt 0:00:30]} Nxd5 {[%emt 0:00:00]} 5. e4 {[%emt 0:00:00]} Nxc3 {[%emt 0:01:00]} 6. bxc3 {[%emt 0:00:00]} Bg7 {[%emt 0:00:00]} 7. Bc4 {[%emt 0:01:30]} c5 {[%emt 0:00:00]} 8. Ne2 {[%emt 0:00:00]} O-O {[%emt 0:00:30]} 9. O-O {[%emt 0:00:00]} Nc6 {[%emt 0:00:30]} 10. Be3 {[%emt 0:01:30]} Qc7 {[%emt 0:00:30]} 11. Rc1 {[%emt 0:05:30]} Rd8 {[%emt 0:00:30]} 12. Bf4 {[%emt 0:05:30]} Qd7 {[%emt 0:02:30]} 13. dxc5 {[%emt 0:07:30]} Qe8 {[%emt 0:01:30]} 14. Qc2 {[%emt 0:05:30]} Bd7 {[%emt 0:07:30]} 15. Rfd1 {[%emt 0:03:30]} Rac8 {[%emt 0:02:30]} 16. Bd5 {[%emt 0:02:30]} Na5 {[%emt 0:06:30]} 17. Be3 {[%emt 0:02:30]} Bb5 {[%emt 0:05:30]} 18. Qb2 {[%emt 0:09:30]} e6 {[%emt 0:05:30]} 19. Bb3 {[%emt 0:00:00]} Bf8 {[%emt 0:07:30]} 20. Rxd8 {[%emt 0:02:00]} Rxd8 {[%emt 0:01:30]} 21. Nd4 {[%emt 0:03:30]} Bd3 {[%emt 0:08:30]} 22. Re1 {[%emt 0:05:30]} Rc8 {[%emt 0:03:30]} 23. c6 {[%emt 0:06:30]} bxc6 {[%emt 0:03:30]} 24. Bc2 {[%emt 0:02:30]} Bxc2 {[%emt 0:04:30]} 25. Qxc2 {[%emt 0:00:30]} c5 {[%emt 0:00:30]} 26. Nb3 {[%emt 0:00:30]} Qa4 {[%emt 0:02:30]} 27. Re2 {[%emt 0:06:30]} Nc4 {[%emt 0:04:30]} 28. Bc1 {[%emt 0:00:30]} Rd8 {[%emt 0:00:30]} 29. h3 {[%emt 0:01:30]} a5 {[%emt 0:03:30]} 30. Bg5 {[%emt 0:00:30]} Rd7 {[%emt 0:00:30]} 31. e5 {[%emt 0:04:30]} Rd5 {[%emt 0:05:30]} 32. Bf6 {[%emt 0:02:30]} Qb5 {[%emt 0:04:59]} 33. Re4 {[%emt 0:04:13]} a4 {[%emt 0:01:26]} 34. Qe2 {[%emt 0:00:05]} 1/2-1/2

[Event "Turkish Cup 2024"]
[Site "Denizli"]
[Date "2024.08.02"]
[Round "5"]
[White "Ozturk, Baran"]
[Black "Demirag, Batuhan"]
[Result "1/2-1/2"]
[ECO "E15"]
[WhiteElo "1701"]
[BlackElo "1912"]
[Annotator "RC"]
[PlyCount "78"]
[EventDate "2024.08.01"]
[EventType "swiss"]
[EventCountry "TUR"]
[SourceTitle "playchess.com"]
[Source "ChessBase"]
[SourceQuality "1"]
[TimeControl "5400+30"]

1. d4 {[%emt 0:01:00]} Nf6 {[%emt 0:01:00]} 2. Nf3 {[%emt 0:00:00]} e6 {[%emt 0:01:30]} 3. c4 {[%emt 0:01:00]} b6 {[%emt 0:01:30]} 4. g3 {[%emt 0:00:00]} Ba6 {[%emt 0:01:30]} 5. Qc2 {[%emt 0:02:00]} Be7 {[%emt 0:01:30]} 6. Bg2 {[%emt 0:00:30]} Bb7 {[%emt 0:01:30]} 7. Nc3 {[%emt 0:02:30]} c5 {[%emt 0:03:30]} 8. e4 {[%emt 0:09:30]} cxd4 {[%emt 0:00:30]} 9. Nxd4 {[%emt 0:00:30]} Qc8 {[%emt 0:00:30]} 10. Qe2 {[%emt 0:02:30]} O-O {[%emt 0:05:30]} 11. O-O {[%emt 0:00:30]} d6 {[%emt 0:01:30]} 12. Rd1 {[%emt 0:05:30]} a6 {[%emt 0:00:30]} 13. Be3 {[%emt 0:04:30]} Nbd7 {[%emt 0:01:30]} 14. f4 {[%emt 0:02:30]} Re8 {[%emt 0:03:30]} 15. Nb3 {[%emt 0:05:30]} Bf8 {[%emt 0:04:30]} 16. Rac1 {[%emt 0:01:30]} Nc5 {[%emt 0:03:30]} 17. Bxc5 {[%emt 0:02:30]} bxc5 {[%emt 0:00:30]} 18. Na5 {[%emt 0:00:30]} e5 {[%emt 0:01:30]} 19. Nxb7 {[%emt 0:06:30]} Qxb7 {[%emt 0:00:30]} 20. f5 {[%emt 0:00:00]} Rab8 {[%emt 0:01:30]} 21. b3 {[%emt 0:00:00]} Qc6 {[%emt 0:03:30]} 22. g4 {[%emt 0:02:30]} Nd7 {[%emt 0:04:30]} 23. Rd3 {[%emt 0:02:30]} Be7 {[%emt 0:02:30]} 24. Qf2 {[%emt 0:00:30]} Nb6 {[%emt 0:06:30]} 25. Rcd1 {[%emt 0:01:30]} Red8 {[%emt 0:06:30]} 26. h4 {[%emt 0:04:30]} h6 {[%emt 0:07:30]} 27. Rh3 {[%emt 0:04:30]} f6 {[%emt 0:01:30]} 28. Bf3 {[%emt 0:02:30]} Rf8 {[%emt 0:04:30]} 29. g5 {[%emt 0:03:30]} fxg5 {[%emt 0:00:30]} 30. hxg5 {[%emt 0:01:30]} Bxg5 {[%emt 0:00:00]} 31. Bh5 {[%emt 0:00:00]} Rf6 {[%emt 0:01:00]} 32. Bg6 {[%emt 0:04:00]} Rbf8 {[%emt 0:00:30]} 33. Qg2 {[%emt 0:03:30]} Rxg6 {[%emt 0:11:05]} 34. fxg6 {[%emt 0:00:30]} Rf6 {[%emt 0:00:00]} 35. Rf1 {[%emt 0:07:30]} Rxg6 {[%emt 0:00:25]} 36. Rg3 {[%emt 0:00:00]} Qe8 {[%emt 0:04:19]} 37. Nd1 {[%emt 0:01:03]} Nd7 {[%emt 0:00:49]} 38. Nf2 {[%emt 0:05:21]} Nf6 {[%emt 0:00:46]} 39. Nh3 {[%emt 0:03:59]} Qd8 {[%emt 0:04:34]} 1/2-1/2

[Event "Turkish Cup 2024"]
[Site "Denizli"]
[Date "2024.08.02"]
[Round "5"]
[White "Harmansa, Kagan"]
[Black "Demirci, Fatih"]
[Result "0-1"]
[ECO "B15"]
[WhiteElo "1688"]
[BlackElo "1885"]
[Annotator "NA COMBH"]
[PlyCount "46"]
[EventDate "2024.08.01"]
[EventType "swiss"]
[EventCountry "TUR"]
[SourceTitle "playchess.com"]
[Source "ChessBase"]
[SourceQuality "1"]
[TimeControl "5400+30"]

1. e4 {[%emt 0:01:00]} c6 {[%emt 0:04:00]} 2. d4 {[%emt 0:00:30]} d5 {[%emt 0:00:00]} 3. Nc3 {[%emt 0:00:00]} dxe4 {[%emt 0:00:00]} 4. Nxe4 {[%emt 0:00:00]} Nf6 {[%emt 0:00:30]} 5. Nxf6+ {[%emt 0:00:00]} exf6 {[%emt 0:00:00]} 6. c3 {[%emt 0:00:00]} Bd6 {[%emt 0:00:00]} 7. Bd3 {[%emt 0:00:30]} O-O {[%emt 0:00:30]} 8. Qc2 {[%emt 0:00:30]} Re8+ {[%emt 0:00:30]} 9. Be3 {[%emt 0:00:00]} h5 {[%emt 0:00:00]} 10. Ne2 {[%emt 0:00:00]} h4 {[%emt 0:00:00]} 11. h3 {[%emt 0:00:30]} Nd7 {[%emt 0:00:00]} 12. O-O {[%emt 0:04:30]} Nf8 {[%emt 0:00:00]} 13. Qd2 {[%emt 0:07:30]} g5 {[%emt 0:01:30]} 14. f4 {[%emt 0:12:30]} g4 {[%emt 0:04:30]} 15. hxg4 {[%emt 0:03:30]} Bxg4 {[%emt 0:00:30]} 16. Rae1 {[%emt 0:04:30]} f5 {[%emt 0:01:30]} 17. Nc1 $11 {[%emt 0:08:30]} Re6 {[%emt 0:06:30]} 18. Qf2 {[%emt 0:24:30]} Rg6 {[%emt 0:06:30]} 19. Kh2 {[%emt 0:04:30]} Nh7 {[%emt 0:16:30]} 20. Qc2 {[%emt 0:05:30]} Qg5 {[%emt 0:07:30]} 21. Kh1 {[%emt 0:02:30]} Qh5 {[%emt 0:00:30]} 22. Bg1 {[%emt 0:02:29]} h3 {[%emt 0:10:30]} 23. g3 {[%emt 0:04:06]} Bf3+ {[%emt 0:03:30]} 0-1

[Event "Turkish Cup 2024"]
[Site "Denizli"]
[Date "2024.08.02"]
[Round "5"]
[White "Sirin, Ahmet"]
[Black "Kilic, Ihsan"]
[Result "1-0"]
[ECO "C42"]
[WhiteElo "1660"]
[BlackElo "1911"]
[Annotator "RC"]
[PlyCount "155"]
[EventDate "2024.08.01"]
[EventType "swiss"]
[EventCountry "TUR"]
[SourceTitle "playchess.com"]
[Source "ChessBase"]
[SourceQuality "1"]
[TimeControl "5400+30"]

1. e4 {[%emt 0:01:00]} e5 {[%emt 0:01:00]} 2. Nf3 {[%emt 0:00:30]} Nf6 {[%emt 0:00:00]} 3. Nxe5 {[%emt 0:01:30]} d6 {[%emt 0:03:00]} 4. Nf3 {[%emt 0:00:30]} Nxe4 {[%emt 0:00:30]} 5. Nc3 {[%emt 0:00:00]} Nf6 {[%emt 0:01:30]} 6. d4 {[%emt 0:00:00]} Be7 {[%emt 0:00:30]} 7. h3 {[%emt 0:01:30]} O-O {[%emt 0:01:30]} 8. Bd3 {[%emt 0:00:30]} Re8 {[%emt 0:01:30]} 9. O-O {[%emt 0:00:30]} Nbd7 {[%emt 0:00:30]} 10. Re1 {[%emt 0:06:30]} b6 {[%emt 0:00:30]} 11. d5 {[%emt 0:04:30]} Bb7 {[%emt 0:04:30]} 12. Bf4 {[%emt 0:04:30]} g6 {[%emt 0:03:30]} 13. Bc4 {[%emt 0:05:30]} a6 {[%emt 0:00:30]} 14. a4 {[%emt 0:00:30]} Nh5 {[%emt 0:02:30]} 15. Be3 {[%emt 0:10:30]} Bf6 {[%emt 0:02:30]} 16. g4 {[%emt 0:02:30]} Ng7 {[%emt 0:01:30]} 17. Bd4 {[%emt 0:01:30]} Rxe1+ {[%emt 0:03:30]} 18. Qxe1 {[%emt 0:00:30]} Bxd4 {[%emt 0:01:30]} 19. Nxd4 {[%emt 0:00:00]} Qh4 {[%emt 0:00:00]} 20. Bf1 {[%emt 0:01:00]} Re8 {[%emt 0:01:00]} 21. Qd2 {[%emt 0:01:30]} h5 {[%emt 0:01:30]} 22. Nf3 {[%emt 0:03:30]} Qf6 {[%emt 0:01:30]} 23. Bg2 {[%emt 0:02:30]} hxg4 {[%emt 0:01:30]} 24. hxg4 {[%emt 0:00:30]} Ne5 {[%emt 0:00:30]} 25. Nxe5 {[%emt 0:01:30]} Qxe5 {[%emt 0:00:30]} 26. f4 {[%emt 0:06:30]} Qe7 {[%emt 0:05:30]} 27. g5 {[%emt 0:10:30]} Bc8 {[%emt 0:08:30]} 28. Ne4 {[%emt 0:02:30]} Nh5 {[%emt 0:00:30]} 29. Re1 {[%emt 0:00:30]} Qd8 {[%emt 0:01:30]} 30. Qd4 {[%emt 0:14:24]} Bf5 {[%emt 0:02:30]} 31. Bf3 {[%emt 0:00:24]} Bxe4 {[%emt 0:00:30]} 32. Rxe4 {[%emt 0:00:15]} Ng3 {[%emt 0:01:30]} 33. Rxe8+ {[%emt 0:01:20]} Qxe8 {[%emt 0:00:00]} 34. Kf2 {[%emt 0:01:21]} Nf5 {[%emt 0:04:00]} 35. Qe4 {[%emt 0:01:22]} Qd8 {[%emt 0:00:30]} 36. Bg4 {[%emt 0:00:30]} Ng7 {[%emt 0:04:30]} 37. Qc4 {[%emt 0:02:57]} a5 {[%emt 0:00:30]} 38. c3 {[%emt 0:00:14]} f6 {[%emt 0:02:30]} 39. Qd3 {[%emt 0:04:33]} f5 {[%emt 0:08:30]} 40. Bf3 {[%emt 0:00:24]} Kf7 {[%emt 0:00:30]} 41. b4 {[%emt 0:00:47]} Qh8 {[%emt 0:04:30]} 42. Kg2 {[%emt 0:02:31]} Qh4 {[%emt 0:01:30]} 43. Qd4 {[%emt 0:00:33]} Kg8 {[%emt 0:02:30]} 44. bxa5 {[%emt 0:01:16]} bxa5 {[%emt 0:00:00]} 45. Qe3 {[%emt 0:01:07]} Kf8 {[%emt 0:04:00]} 46. Qd4 {[%emt 0:00:19]} Kg8 {[%emt 0:03:01]} 47. Qc4 {[%emt 0:01:04]} Kh7 {[%emt 0:02:31]} 48. Kf1 {[%emt 0:00:53]} Qg3 {[%emt 0:01:10]} 49. Ke2 {[%emt 0:01:07]} Qh2+ {[%emt 0:01:11]} 50. Kd1 {[%emt 0:00:25]} Qf2 {[%emt 0:01:07]} 51. Be2 {[%emt 0:01:07]} Qe3 {[%emt 0:00:41]} 52. Qd4 {[%emt 0:00:56]} Qg3 {[%emt 0:01:20]} 53. Kc2 {[%emt 0:00:54]} Qh2 {[%emt 0:00:25]} 54. Kd3 {[%emt 0:00:26]} c6 {[%emt 0:01:20]} 55. dxc6 {[%emt 0:00:37]} Qg3+ {[%emt 0:03:12]} 56. Kc4 {[%emt 0:00:42]} Qg2 {[%emt 0:00:38]} 57. Kb3 {[%emt 0:01:54]} Qxc6 {[%emt 0:03:12]} 58. Bc4 {[%emt 0:00:23]} Qb7+ {[%emt 0:01:58]} 59. Ka3 {[%emt 0:00:12]} Qc8 {[%emt 0:02:06]} 60. Ka2 {[%emt 0:00:37]} Nh5 {[%emt 0:02:40]} 61. Qd5 {[%emt 0:00:15]} Qf8 {[%emt 0:01:16]} 62. Qxa5 {[%emt 0:01:06]} Nxf4 {[%emt 0:01:18]} 63. Qa7+ {[%emt 0:00:09]} Qg7 {[%emt 0:01:43]} 64. Qxg7+ {[%emt 0:00:30]} Kxg7 {[%emt 0:00:30]} 65. a5 {[%emt 0:00:00]} d5 {[%emt 0:00:00]} 66. a6 {[%emt 0:00:09]} Ne6 {[%emt 0:00:00]} 67. a7 {[%emt 0:00:31]} Nc7 {[%emt 0:01:10]} 68. Bxd5 {[%emt 0:00:11]} Nxd5 {[%emt 0:00:28]} 69. a8=Q {[%emt 0:00:41]} Nxc3+ {[%emt 0:00:30]} 70. Kb3 {[%emt 0:00:00]} Ne4 {[%emt 0:00:00]} 71. Qb7+ {[%emt 0:00:21]} Kf8 {[%emt 0:00:00]} 72. Qc8+ {[%emt 0:00:33]} Kg7 {[%emt 0:00:13]} 73. Qd7+ {[%emt 0:00:13]} Kg8 {[%emt 0:00:19]} 74. Qe7 {[%emt 0:00:25]} Nd2+ {[%emt 0:01:04]} 75. Kc3 {[%emt 0:00:36]} Ne4+ {[%emt 0:00:11]} 76. Kd4 {[%emt 0:00:01]} Kh8 {[%emt 0:00:13]} 77. Qf8+ {[%emt 0:01:05]} Kh7 {[%emt 0:00:17]} 78. Qh6+ {[%emt 0:00:00]} 1-0

[Event "Turkish Cup 2024"]
[Site "Denizli"]
[Date "2024.08.02"]
[Round "6"]
[White "Gunduz, Umut Erdem"]
[Black "Akbas, Kaan"]
[Result "1-0"]
[ECO "A35"]
[WhiteElo "2276"]
[BlackElo "1990"]
[Annotator "ChessBase"]
[PlyCount "73"]
[EventDate "2024.08.01"]
[EventType "swiss"]
[EventCountry "TUR"]
[SourceTitle "playchess.com"]
[Source "ChessBase"]
[SourceQuality "1"]
[TimeControl "5400+30"]

1. e4 {[%emt 0:04:00]} c6 {[%emt 0:03:00]} 2. d4 {[%emt 0:04:30]} d5 {[%emt 0:00:30]} 3. exd5 {[%emt 0:00:30]} cxd5 {[%emt 0:00:00]} 4. c4 {[%emt 0:00:30]} Nf6 {[%emt 0:01:00]} 5. Nc3 {[%emt 0:00:30]} g6 {[%emt 0:00:30]} 6. cxd5 {[%emt 0:02:30]} Nxd5 {[%emt 0:01:30]} 7. Qb3 {[%emt 0:01:30]} Nxc3 {[%emt 0:01:30]} 8. Bc4 {[%emt 0:02:30]} e6 {[%emt 0:00:30]} 9. bxc3 {[%emt 0:00:30]} Nc6 {[%emt 0:00:30]} 10. Nf3 {[%emt 0:04:30]} Na5 {[%emt 0:09:30]} 11. Bb5+ {[%emt 0:00:30]} Bd7 {[%emt 0:01:30]} 12. Qa4 {[%emt 0:00:30]} Nc6 {[%emt 0:00:00]} 13. d5 {[%emt 0:03:30]} exd5 {[%emt 0:02:00]} 14. O-O {[%emt 0:00:30]} Be7 {[%emt 0:00:30]} 15. Bh6 {[%emt 0:02:30]} a6 {[%emt 0:21:30]} 16. Bxc6 {[%emt 0:04:30]} Bxc6 {[%emt 0:00:30]} 17. Qd4 {[%emt 0:00:30]} f6 {[%emt 0:00:30]} 18. Rfe1 {[%emt 0:01:30]} Rf8 {[%emt 0:08:30]} 19. Bxf8 {[%emt 0:15:30]} Kxf8 {[%emt 0:00:30]} 20. Qh4 {[%emt 0:01:30]} Kg8 {[%emt 0:07:30]} 21. Nd4 {[%emt 0:01:30]} Qd7 {[%emt 0:02:30]} 22. Re6 {[%emt 0:00:30]} Rf8 {[%emt 0:01:30]} 23. Rae1 {[%emt 0:01:30]} Rf7 {[%emt 0:00:30]} 24. Qf4 {[%emt 0:07:30]} Bd8 {[%emt 0:05:30]} 25. h4 {[%emt 0:01:30]} Bc7 {[%emt 0:01:30]} 26. Qh6 {[%emt 0:02:30]} Be5 {[%emt 0:00:30]} 27. h5 {[%emt 0:01:30]} Rg7 {[%emt 0:05:30]} 28. f4 {[%emt 0:02:30]} Bxd4+ {[%emt 0:05:55]} 29. cxd4 {[%emt 0:00:00]} Qd8 {[%emt 0:04:49]} 30. hxg6 {[%emt 0:05:00]} hxg6 {[%emt 0:01:02]} 31. Qh4 {[%emt 0:00:30]} Kf7 {[%emt 0:01:27]} 32. f5 {[%emt 0:04:30]} Bd7 {[%emt 0:03:45]} 33. fxg6+ {[%emt 0:01:30]} Kxg6 {[%emt 0:01:58]} 34. Qg4+ {[%emt 0:01:30]} Kh6 {[%emt 0:00:30]} 35. Qf4+ {[%emt 0:00:00]} Kg6 {[%emt 0:01:39]} 36. Rd6 {[%emt 0:00:00]} Qf8 {[%emt 0:01:50]} 37. Rxd7 {[%emt 0:00:30]} 1-0

[Event "Turkish Cup 2024"]
[Site "Denizli"]
[Date "2024.08.02"]
[Round "6"]
[White "Yildiz, Serdar Murat"]
[Black "Akkara, Omer"]
[Result "1-0"]
[ECO "B36"]
[WhiteElo "2182"]
[BlackElo "1998"]
[Annotator "ChessBase"]
[PlyCount "67"]
[EventDate "2024.08.01"]
[EventType "swiss"]
[EventCountry "TUR"]
[SourceTitle "playchess.com"]
[Source "ChessBase"]
[SourceQuality "1"]
[TimeControl "5400+30"]

1. e4 {[%emt 0:01:00]} c5 {[%emt 0:01:00]} 2. Nf3 {[%emt 0:00:30]} Nc6 {[%emt 0:00:30]} 3. d4 {[%emt 0:00:30]} cxd4 {[%emt 0:00:30]} 4. Nxd4 {[%emt 0:00:00]} g6 {[%emt 0:00:00]} 5. c4 {[%emt 0:00:00]} Nf6 {[%emt 0:00:00]} 6. Nc3 {[%emt 0:00:00]} Nxd4 {[%emt 0:00:00]} 7. Qxd4 {[%emt 0:00:00]} d6 {[%emt 0:00:00]} 8. Be2 {[%emt 0:00:00]} Bg7 {[%emt 0:00:30]} 9. Be3 {[%emt 0:00:00]} O-O {[%emt 0:00:00]} 10. Qd2 {[%emt 0:00:00]} b6 {[%emt 0:01:00]} 11. O-O {[%emt 0:00:00]} Bb7 {[%emt 0:00:30]} 12. f3 {[%emt 0:00:30]} Rc8 {[%emt 0:00:30]} 13. Rac1 {[%emt 0:02:30]} Nd7 {[%emt 0:01:30]} 14. b3 {[%emt 0:01:30]} f5 {[%emt 0:02:30]} 15. exf5 {[%emt 0:05:30]} Rxf5 {[%emt 0:00:00]} 16. Nb5 {[%emt 0:00:00]} a5 {[%emt 0:17:00]} 17. Nd4 {[%emt 0:11:00]} Bxd4 {[%emt 0:01:30]} 18. Bxd4 {[%emt 0:00:30]} Nc5 {[%emt 0:00:30]} 19. Bb2 {[%emt 0:09:30]} Qc7 {[%emt 0:06:30]} 20. f4 {[%emt 0:06:30]} Ne4 {[%emt 0:13:30]} 21. Qe3 {[%emt 0:06:30]} Qc6 {[%emt 0:16:30]} 22. Bf3 {[%emt 0:15:30]} Rcf8 {[%emt 0:00:30]} 23. g3 {[%emt 0:01:30]} g5 {[%emt 0:07:30]} 24. Rce1 {[%emt 0:08:30]} gxf4 {[%emt 0:09:30]} 25. Qxe4 {[%emt 0:00:30]} Qc5+ {[%emt 0:01:30]} 26. Qd4 {[%emt 0:00:30]} fxg3 {[%emt 0:00:30]} 27. Qxc5 {[%emt 0:01:30]} gxh2+ {[%emt 0:01:42]} 28. Kxh2 {[%emt 0:00:30]} dxc5 {[%emt 0:01:12]} 29. Rg1+ {[%emt 0:00:30]} Kf7 {[%emt 0:00:07]} 30. Rg7+ {[%emt 0:00:30]} Ke8 {[%emt 0:00:30]} 31. Rexe7+ {[%emt 0:00:30]} Kd8 {[%emt 0:00:00]} 32. Rd7+ {[%emt 0:00:00]} Kc8 {[%emt 0:00:10]} 33. Rc7+ {[%emt 0:00:00]} Kd8 {[%emt 0:00:13]} 34. Rxb7 {[%emt 0:00:00]} 1-0

[Event "Turkish Cup 2024"]
[Site "Denizli"]
[Date "2024.08.02"]
[Round "6"]
[White "Topuz, Mirac Melih"]
[Black "Manas, Eren"]
[Result "1-0"]
[ECO "D80"]
[WhiteElo "2148"]
[BlackElo "2013"]
[Annotator "ChessBase"]
[PlyCount "97"]
[EventDate "2024.08.01"]
[EventType "swiss"]
[EventCountry "TUR"]
[SourceTitle "playchess.com"]
[Source "ChessBase"]
[SourceQuality "1"]
[TimeControl "5400+30"]

1. d4 {[%emt 0:10:00]} Nf6 {[%emt 0:01:00]} 2. c4 {[%emt 0:00:30]} g6 {[%emt 0:00:30]} 3. Nc3 {[%emt 0:00:30]} d5 {[%emt 0:00:30]} 4. Nf3 {[%emt 0:00:30]} Bg7 {[%emt 0:00:30]} 5. Bg5 {[%emt 0:00:00]} Ne4 {[%emt 0:00:00]} 6. Bf4 {[%emt 0:00:00]} Nxc3 {[%emt 0:02:00]} 7. bxc3 {[%emt 0:00:00]} c5 {[%emt 0:01:30]} 8. e3 {[%emt 0:00:00]} O-O {[%emt 0:00:30]} 9. cxd5 {[%emt 0:00:00]} Qxd5 {[%emt 0:00:30]} 10. Be2 {[%emt 0:00:00]} Nc6 {[%emt 0:00:30]} 11. O-O {[%emt 0:02:30]} cxd4 {[%emt 0:07:30]} 12. cxd4 {[%emt 0:02:30]} Bf5 {[%emt 0:02:30]} 13. Qa4 {[%emt 0:02:30]} Rac8 {[%emt 0:03:30]} 14. Rac1 {[%emt 0:07:30]} Qa5 {[%emt 0:05:30]} 15. Qb3 {[%emt 0:06:30]} Qb4 {[%emt 0:04:30]} 16. Rc5 {[%emt 0:07:30]} Qxb3 {[%emt 0:06:30]} 17. axb3 {[%emt 0:02:30]} b6 {[%emt 0:02:30]} 18. Rcc1 {[%emt 0:26:30]} Nb4 {[%emt 0:13:30]} 19. Rc4 {[%emt 0:04:30]} Bd3 {[%emt 0:09:30]} 20. Bxd3 {[%emt 0:02:30]} Nxd3 {[%emt 0:01:30]} 21. Bc7 {[%emt 0:03:30]} b5 {[%emt 0:12:30]} 22. Rc3 {[%emt 0:06:45]} Nb4 {[%emt 0:00:30]} 23. Ra1 {[%emt 0:03:50]} Nd5 {[%emt 0:02:30]} 24. Rc5 {[%emt 0:00:54]} Nxc7 {[%emt 0:05:12]} 25. Rac1 {[%emt 0:00:07]} a5 {[%emt 0:01:11]} 26. Rxc7 {[%emt 0:00:30]} Rxc7 {[%emt 0:00:30]} 27. Rxc7 {[%emt 0:00:00]} Ra8 {[%emt 0:00:26]} 28. Rc2 {[%emt 0:09:16]} a4 {[%emt 0:02:30]} 29. bxa4 {[%emt 0:02:02]} bxa4 {[%emt 0:00:30]} 30. Kf1 {[%emt 0:00:32]} e6 {[%emt 0:05:42]} 31. Ke2 {[%emt 0:00:17]} a3 {[%emt 0:00:55]} 32. Ra2 {[%emt 0:00:30]} Bf8 {[%emt 0:00:00]} 33. Kd3 {[%emt 0:00:43]} Rc8 {[%emt 0:00:39]} 34. Ne1 {[%emt 0:01:25]} Rc1 {[%emt 0:06:16]} 35. Kd2 {[%emt 0:00:37]} Rb1 {[%emt 0:00:22]} 36. Nc2 {[%emt 0:00:30]} Rb2 {[%emt 0:00:56]} 37. Ra1 {[%emt 0:00:14]} Kg7 {[%emt 0:01:12]} 38. Kc3 {[%emt 0:00:47]} Kf6 {[%emt 0:00:58]} 39. g3 {[%emt 0:00:30]} h5 {[%emt 0:01:12]} 40. f3 {[%emt 0:00:18]} g5 {[%emt 0:00:21]} 41. e4 {[%emt 0:00:36]} e5 {[%emt 0:00:49]} 42. dxe5+ {[%emt 0:00:56]} Kxe5 {[%emt 0:00:30]} 43. Rd1 {[%emt 0:00:00]} Rb5 {[%emt 0:00:15]} 44. Rd8 {[%emt 0:00:38]} Be7 {[%emt 0:01:15]} 45. Ra8 {[%emt 0:00:24]} Rc5+ {[%emt 0:00:32]} 46. Kd3 {[%emt 0:00:31]} Rb5 {[%emt 0:00:15]} 47. Nd4 {[%emt 0:00:19]} Rb2 {[%emt 0:00:45]} 48. Ra6 {[%emt 0:00:23]} Bc5 {[%emt 0:01:01]} 49. f4+ {[%emt 0:00:08]} 1-0